fUST/lending_fUST_20241017
["ID","MTS","AMOUNT","RATE_DAILY","PERIOD"]
[340378537,1729143040111,-55765.46734285,0.00015469,2]
[340378567,1729143046204,-34704.01739747,0.00015469,2]
[340378569,1729143046214,-26456.53104963,0.00015469,2]
[340378638,1729143353848,163.060246,0.00013576,2]
[340378639,1729143353977,163.060246,0.00013582,2]
[340378640,1729143354210,163.060246,0.00013588,2]
[340378641,1729143354408,163.060246,0.00013594,2]
[340378642,1729143354614,163.060246,0.000136,2]
[340378643,1729143354840,163.060246,0.00013606,2]
[340378644,1729143355241,163.060246,0.00013613,2]
[340378645,1729143355442,163.060246,0.00013619,2]
[340378646,1729143355674,163.060246,0.00013625,2]
[340378647,1729143355873,163.060246,0.00013631,2]
[340378648,1729143356122,163.060246,0.00013637,2]
[340378649,1729143356329,163.060246,0.00013643,2]
[340378651,1729143384010,216.360899,0.00013677,2]
[340378652,1729143384470,216.360899,0.00013715,2]
[340378653,1729143384520,216.360899,0.00013752,2]
[340378654,1729143384665,216.360899,0.0001379,2]
[340378655,1729143384877,216.360899,0.00013827,2]
[340378656,1729143385077,216.360899,0.00013865,2]
[340378657,1729143385307,216.360899,0.00013902,2]
[340378658,1729143385708,216.360899,0.0001394,2]
[340378659,1729143385938,216.360899,0.00013977,2]
[340378660,1729143387705,345.430555,0.00013699,2]
[340378663,1729143438794,3000.0,0.00013256,2]
[340378664,1729143494974,250.0,0.00013256,2]
[340378668,1729143663967,501.92043,0.00013267,2]
[340378669,1729143741341,-2502.23315416,0.00018,10]
[340378670,1729143741362,-5497.76684584,0.00018,10]
[340378671,1729143815359,2825.3537695,0.00013265,2]
[340378672,1729143862227,24880.0,0.00013282,2]
[340378673,1729143915889,172.715277,0.00013699,2]
[340378674,1729143959647,2720.171335,0.00013699,2]
[340378675,1729144118121,17331.3732227,0.00013699,2]
[340378677,1729144141608,158.664659,0.00013887,2]
[340378678,1729144141890,158.664659,0.00013939,2]
[340378679,1729144142297,158.664659,0.00013991,2]
[340378714,1729144232591,-158.664659,0.00014042,2]
[340378715,1729144232601,-158.664659,0.00014094,2]
[340378716,1729144232611,-158.664659,0.00014146,2]
[340378717,1729144232620,-158.664659,0.00014198,2]
[340378718,1729144232630,-158.664659,0.00014249,2]
[340378719,1729144232639,-158.664659,0.00014301,2]
[340378720,1729144232650,-158.664659,0.00014353,2]
[340378721,1729144232660,-2720.171335,0.00014384,2]
[340378722,1729144232670,-158.664659,0.00014404,2]
[340378723,1729144232679,-158.664659,0.00014456,2]
[340378724,1729144232689,-158.664659,0.00014508,2]
[340378725,1729144232700,-158.664659,0.00014559,2]
[340378726,1729144232709,-158.664659,0.00014611,2]
[340378727,1729144232720,-306.0,0.00014641,2]
[340378728,1729144232730,-300.0,0.00014776,2]
[340378729,1729144232739,-300.0,0.00014777,2]
[340378730,1729144232749,-414.4932585,0.00014778,2]
[340378731,1729144232759,-414.4932585,0.00014778,2]
[340378732,1729144232769,-828.7493606,0.00014778,2]
[340378733,1729144232779,-466.89077071,0.00014787,2]
[340378734,1729144232789,-5214.69,0.00015,2]
[340378735,1729144232799,-2720.171335,0.00015068,2]
[340378736,1729144232809,-10344.19193496,0.000153,2]
[340378737,1729144232820,-510.7488504,0.00015347,2]
[340378738,1729144232831,-204.83031052,0.00015388,2]
[340378739,1729144232841,-26044.15229204,0.00015388,2]
[340378740,1729144232852,-313.8530913,0.000154,2]
[340378741,1729144232862,-150.112233,0.000154,2]
[340378742,1729144232872,-150.112233,0.000154,2]
[340378743,1729144232884,-150.112233,0.000154,2]
[340378744,1729144232896,-65475.9342876,0.00015425,2]
[340378745,1729144232906,-2605.58805833,0.00015426,2]
[340378809,1729144240368,-106165.53515534,0.00015426,2]
[340378817,1729144240429,-22180.74536133,0.00015426,2]
[340378818,1729144240438,-533.85524658,0.00015427,2]
[340378819,1729144240448,-500.0,0.00015427,2]
[340378820,1729144240457,-500.0,0.00015427,2]
[340378821,1729144240467,-500.0,0.00015427,2]
[340378822,1729144240476,-500.0,0.00015427,2]
[340378823,1729144240485,-500.0,0.00015427,2]
[340378824,1729144240495,-225.78223442,0.00015427,2]
[340378825,1729144240505,-500.0,0.00015427,2]
[340378826,1729144240514,-500.0,0.00015427,2]
[340378827,1729144240525,-500.0,0.00015427,2]
[340378828,1729144240535,-500.0,0.00015427,2]
[340378829,1729144240544,-500.0,0.00015427,2]
[340378830,1729144240554,-500.0,0.00015427,2]
[340378831,1729144240563,-500.0,0.00015427,2]
[340378832,1729144240573,-500.0,0.00015427,2]
[340378833,1729144240582,-500.0,0.00015427,2]
[340378834,1729144240591,-500.0,0.00015427,2]
[340378835,1729144240601,-500.0,0.00015427,2]
[340378836,1729144240610,-500.0,0.00015427,2]
[340378837,1729144240621,-500.0,0.00015427,2]
[340378838,1729144240631,-500.0,0.00015427,2]
[340378839,1729144240641,-500.0,0.00015427,2]
[340378840,1729144240650,-500.0,0.00015427,2]
[340378841,1729144240660,-500.0,0.00015427,2]
[340378842,1729144240669,-500.0,0.00015427,2]
[340378843,1729144240679,-500.0,0.00015427,2]
[340378844,1729144240689,-500.0,0.00015427,2]
[340378845,1729144240699,-500.0,0.00015427,2]
[340378846,1729144240708,-500.0,0.00015427,2]
[340378847,1729144240717,-65475.9342876,0.00015428,2]
[340378848,1729144240727,-1003.382381,0.00015432,2]
[340378849,1729144240737,-1003.382381,0.00015432,2]
[340378850,1729144240747,-65475.9342876,0.00015432,2]
[340378851,1729144240756,-51578.0978361,0.00015435,2]
[340378852,1729144240766,-500.0,0.00015436,2]
[340378853,1729144240775,-500.0,0.00015436,2]
[340378854,1729144240785,-209.12510549,0.00015436,2]
[340378855,1729144240795,-486.23125048,0.00015436,2]
[340378856,1729144240805,-230.29902578,0.00015436,2]
[340378857,1729144240815,-167.10118116,0.00015436,2]
[340378858,1729144240824,-1003.382381,0.00015436,2]
[340378859,1729144240834,-1003.382381,0.00015436,2]
[340378860,1729144240844,-1003.382381,0.00015436,2]
[340378861,1729144240853,-1003.382381,0.00015436,2]
[340378862,1729144240863,-51578.0978361,0.00015436,2]
[340378863,1729144240872,-51578.0978361,0.00015437,2]
[340378864,1729144240881,-50447.14996561,0.00015437,2]
[340378885,1729145011982,20174.2022665,0.00013733,2]
[340378886,1729145019311,6303.0,0.00014,2]
[340378889,1729145313271,3000.0,0.00014,2]
[340378953,1729145433097,-500.0,0.00014085,2]
[340378954,1729145433108,-500.0,0.00014085,2]
[340378955,1729145433119,-155.0,0.0001419,2]
[340378956,1729145433128,-172.715278,0.00014214,2]
[340378957,1729145433142,-500.0,0.00014388,2]
[340378958,1729145433152,-500.0,0.00015243,2]
[340378959,1729145433162,-2939.76471949,0.00015284,2]
[340378966,1729145438822,-645.9168,0.00015284,2]
[340379009,1729145440660,-335.2918186,0.00015284,2]
[340379049,1729145446630,-60.97652814,0.00015284,2]
[340379050,1729145446644,-396.1607352,0.00015295,2]
[340379059,1729146156422,1000.0,0.00027,60]
[340379061,1729146286802,356.447793,0.00013994,2]
[340379063,1729146380281,-160.0006508,0.0001419,2]
[340379064,1729146380308,-300.0,0.00014243,2]
[340379065,1729146380332,-300.0,0.00014243,2]
[340379066,1729146380356,-24900.0,0.00014244,2]
[340379067,1729146380379,-356.447793,0.00014679,2]
[340379068,1729146380401,-465.09453854,0.0001475,2]
[340379069,1729146380425,-153.0,0.000151,2]
[340379070,1729146380449,-210.4868531,0.000151,2]
[340379071,1729146380473,-3484.20613296,0.00015264,2]
[340379072,1729146380496,-1419.15982363,0.00015273,2]
[340379073,1729146380521,-603.83926481,0.00015282,2]
[340379074,1729146380546,-5000.0,0.000153,2]
[340379075,1729146380568,-204.83031052,0.000153,2]
[340379076,1729146380591,-356.447793,0.00015364,2]
[340379077,1729146380615,-82638.0513248,0.0001537,2]
[340379078,1729146380648,-105813.429874,0.0001537,2]
[340379079,1729146380672,-500.0,0.0001537,2]
[340379080,1729146380696,-500.0,0.0001537,2]
[340379081,1729146380722,-500.0,0.0001537,2]
[340379082,1729146380746,-500.0,0.0001537,2]
[340379083,1729146380770,-500.0,0.0001537,2]
[340379084,1729146380793,-500.0,0.0001537,2]
[340379085,1729146380817,-500.0,0.0001537,2]
[340379086,1729146380840,-500.0,0.0001537,2]
[340379087,1729146380864,-500.0,0.0001537,2]
[340379088,1729146380887,-500.0,0.0001537,2]
[340379089,1729146380911,-500.0,0.0001537,2]
[340379090,1729146380935,-500.0,0.0001537,2]
[340379091,1729146380959,-500.0,0.0001537,2]
[340379092,1729146380983,-500.0,0.0001537,2]
[340379093,1729146381006,-500.0,0.0001537,2]
[340379094,1729146381029,-500.0,0.0001537,2]
[340379095,1729146381052,-500.0,0.0001537,2]
[340379096,1729146381076,-500.0,0.0001537,2]
[340379097,1729146381099,-500.0,0.0001537,2]
[340379098,1729146381123,-500.0,0.0001537,2]
[340379099,1729146381149,-500.0,0.0001537,2]
[340379100,1729146381173,-500.0,0.0001537,2]
[340379101,1729146381197,-500.0,0.0001537,2]
[340379102,1729146381221,-500.0,0.0001537,2]
[340379103,1729146381243,-500.0,0.0001537,2]
[340379104,1729146381267,-500.0,0.0001537,2]
[340379105,1729146381290,-500.0,0.0001537,2]
[340379106,1729146381316,-500.0,0.0001537,2]
[340379107,1729146381340,-500.0,0.0001537,2]
[340379108,1729146381363,-564.21409968,0.0001537,2]
[340379109,1729146381386,-500.0,0.0001537,2]
[340379110,1729146381411,-500.0,0.0001537,2]
[340379111,1729146381440,-500.0,0.0001537,2]
[340379112,1729146381464,-500.0,0.0001537,2]
[340379113,1729146381487,-500.0,0.0001537,2]
[340379114,1729146381509,-500.0,0.0001537,2]
[340379115,1729146381535,-500.0,0.0001537,2]
[340379116,1729146381560,-500.0,0.0001537,2]
[340379117,1729146381585,-500.0,0.0001537,2]
[340379118,1729146381609,-500.0,0.0001537,2]
[340379119,1729146381634,-500.0,0.0001537,2]
[340379120,1729146381657,-500.0,0.0001537,2]
[340379121,1729146381684,-500.0,0.0001537,2]
[340379122,1729146381706,-500.0,0.0001537,2]
[340379123,1729146381730,-500.0,0.0001537,2]
[340379124,1729146381753,-500.0,0.0001537,2]
[340379125,1729146381775,-500.0,0.0001537,2]
[340379126,1729146381799,-500.0,0.0001537,2]
[340379127,1729146381822,-500.0,0.0001537,2]
[340379128,1729146381844,-500.0,0.0001537,2]
[340379129,1729146381868,-500.0,0.0001537,2]
[340379130,1729146381891,-500.0,0.0001537,2]
[340379131,1729146381914,-500.0,0.0001537,2]
[340379132,1729146381937,-500.0,0.0001537,2]
[340379133,1729146381960,-500.0,0.0001537,2]
[340379134,1729146381983,-500.0,0.0001537,2]
[340379135,1729146382006,-500.0,0.0001537,2]
[340379136,1729146382029,-500.0,0.0001537,2]
[340379137,1729146382050,-500.0,0.0001537,2]
[340379138,1729146382073,-500.0,0.0001537,2]
[340379139,1729146382096,-500.0,0.0001537,2]
[340379140,1729146382123,-500.0,0.0001537,2]
[340379141,1729146382145,-500.0,0.0001537,2]
[340379142,1729146382169,-500.0,0.0001537,2]
[340379143,1729146382193,-500.0,0.0001537,2]
[340379144,1729146382217,-500.0,0.0001537,2]
[340379145,1729146382240,-530.77926897,0.0001537,2]
[340379146,1729146382263,-500.0,0.0001537,2]
[340379147,1729146382286,-500.0,0.0001537,2]
[340379148,1729146382311,-500.0,0.0001537,2]
[340379149,1729146382335,-500.0,0.00015371,2]
[340379150,1729146382359,-161.20931805,0.00015371,2]
[340379151,1729146382381,-466.97082682,0.00015371,2]
[340379152,1729146382404,-190.36187534,0.00015371,2]
[340379153,1729146382430,-157.813727,0.00015371,2]
[340379154,1729146382454,-313.603991,0.00015371,2]
[340379155,1729146382478,-313.603991,0.00015371,2]
[340379156,1729146382501,-151.0,0.00015371,2]
[340379157,1729146382526,-41319.0256624,0.00015371,2]
[340379158,1729146382551,-52906.7149368,0.00015371,2]
[340379159,1729146382577,-41319.0256624,0.00015372,2]
[340379160,1729146382838,-52906.7149368,0.00015372,2]
[340379161,1729146382863,-82638.0513248,0.00015372,2]
[340379162,1729146382890,-105813.429874,0.00015372,2]
[340379163,1729146382913,-313.603991,0.00015372,2]
[340379164,1729146382937,-313.603991,0.00015372,2]
[340379165,1729146382961,-313.603991,0.00015372,2]
[340379166,1729146382984,-313.603991,0.00015372,2]
[340379167,1729146383008,-313.603991,0.00015372,2]
[340379168,1729146383031,-313.603991,0.00015372,2]
[340379169,1729146383054,-313.603991,0.00015372,2]
[340379170,1729146383078,-313.603991,0.00015372,2]
[340379171,1729146383101,-151.0,0.00015372,2]
[340379172,1729146383125,-151.0,0.00015372,2]
[340379173,1729146383148,-151.0,0.00015372,2]
[340379174,1729146383170,-151.0,0.00015372,2]
[340379175,1729146383194,-500.0,0.00015373,2]
[340379176,1729146383218,-500.0,0.00015373,2]
[340379177,1729146383240,-500.0,0.00015373,2]
[340379178,1729146383262,-503.37491479,0.00015373,2]
[340379179,1729146383285,-500.0,0.00015373,2]
[340379180,1729146383311,-500.59326984,0.00015373,2]
[340379181,1729146383335,-501.99362584,0.00015373,2]
[340379182,1729146383358,-613.39268412,0.00015373,2]
[340379183,1729146383381,-500.37607044,0.00015373,2]
[340379184,1729146383405,-500.0,0.00015373,2]
[340379185,1729146383427,-372.71145255,0.00015373,2]
[340379186,1729146383451,-500.0,0.00015373,2]
[340379187,1729146383474,-495.36600512,0.00015373,2]
[340379188,1729146383500,-500.0,0.00015373,2]
[340379189,1729146383524,-500.0,0.00015373,2]
[340379190,1729146383548,-591.32662608,0.00015373,2]
[340379191,1729146383571,-500.0,0.00015373,2]
[340379192,1729146383594,-500.0,0.00015373,2]
[340379193,1729146383619,-14754.77,0.00015375,2]
[340379194,1729146383647,-14754.77,0.00015375,2]
[340379195,1729146383671,-14754.77,0.00015375,2]
[340379196,1729146383695,-14754.77,0.00015375,2]
[340379197,1729146383720,-14754.77,0.00015375,2]
[340379198,1729146383743,-915.65,0.0001538,2]
[340379199,1729146383766,-151.0,0.0001538,2]
[340379200,1729146383791,-172.606118,0.0001538,2]
[340379201,1729146383814,-172.606118,0.0001538,2]
[340379202,1729146383837,-151.0,0.0001538,2]
[340379203,1729146383859,-151.0,0.0001538,2]
[340379204,1729146383883,-151.0,0.0001538,2]
[340379205,1729146383906,-313.603991,0.0001538,2]
[340379206,1729146383930,-313.603991,0.0001538,2]
[340379207,1729146383956,-313.603991,0.0001538,2]
[340379208,1729146383979,-313.603991,0.0001538,2]
[340379209,1729146384001,-151.0,0.0001538,2]
[340379210,1729146384025,-14754.77,0.0001538,2]
[340379211,1729146384049,-14754.77,0.0001538,2]
[340379212,1729146384072,-261.378389,0.0001538,2]
[340379213,1729146384094,-151.0,0.00015381,2]
[340379214,1729146384116,-151.0,0.00015381,2]
[340379215,1729146384138,-172.606118,0.00015381,2]
[340379216,1729146384159,-172.606118,0.00015381,2]
[340379217,1729146384184,-172.606118,0.00015381,2]
[340379218,1729146384207,-172.606118,0.00015381,2]
[340379219,1729146384232,-151.0,0.00015381,2]
[340379220,1729146384254,-151.0,0.00015381,2]
[340379221,1729146384277,-151.0,0.00015381,2]
[340379222,1729146384303,-151.0,0.00015381,2]
[340379223,1729146384328,-151.0,0.00015381,2]
[340379224,1729146384352,-151.0,0.00015381,2]
[340379225,1729146384377,-313.603991,0.00015381,2]
[340379226,1729146384400,-313.603991,0.00015381,2]
[340379227,1729146384425,-313.603991,0.00015381,2]
[340379228,1729146384451,-313.603991,0.00015381,2]
[340379229,1729146384475,-151.0,0.00015381,2]
[340379230,1729146384500,-151.0,0.00015381,2]
[340379231,1729146384524,-14754.77,0.00015381,2]
[340379232,1729146384550,-14754.77,0.00015381,2]
[340379233,1729146384574,-14754.77,0.00015381,2]
[340379234,1729146384601,-14754.77,0.00015381,2]
[340379235,1729146384628,-14754.77,0.00015381,2]
[340379236,1729146384652,-14754.77,0.00015381,2]
[340379237,1729146384678,-14754.77,0.00015381,2]
[340379238,1729146384705,-151.0,0.00015382,2]
[340379239,1729146384730,-152.594277,0.00015382,2]
[340379240,1729146384755,-151.0,0.00015382,2]
[340379241,1729146384779,-258.87841,0.00015382,2]
[340379242,1729146384802,-151.0,0.00015382,2]
[340379243,1729146384824,-151.0,0.00015382,2]
[340379244,1729146384847,-151.0,0.00015382,2]
[340379245,1729146384869,-161.883092,0.00015382,2]
[340379246,1729146384893,-151.0,0.00015382,2]
[340379247,1729146384917,-151.0,0.00015382,2]
[340379248,1729146384945,-151.0,0.00015382,2]
[340379249,1729146384968,-151.0,0.00015382,2]
[340379250,1729146384991,-151.0,0.00015382,2]
[340379251,1729146385014,-151.0,0.00015382,2]
[340379252,1729146385036,-702.367667,0.00015382,2]
[340379253,1729146385059,-702.367667,0.00015382,2]
[340379254,1729146385083,-702.367667,0.00015382,2]
[340379255,1729146385106,-151.0,0.00015382,2]
[340379256,1729146385131,-151.5034,0.00015382,2]
[340379257,1729146385154,-151.0,0.00015382,2]
[340379258,1729146385178,-151.0,0.00015382,2]
[340379259,1729146385209,-151.0,0.00015382,2]
[340379260,1729146385233,-151.0,0.00015382,2]
[340379261,1729146385257,-151.0,0.00015382,2]
[340379262,1729146385280,-151.0,0.00015382,2]
[340379263,1729146385318,-151.0,0.00015382,2]
[340379264,1729146385345,-151.0,0.00015382,2]
[340379265,1729146385370,-151.0,0.00015382,2]
[340379266,1729146385395,-151.0,0.00015382,2]
[340379267,1729146385421,-151.0,0.00015382,2]
[340379268,1729146385448,-228.41816,0.00015382,2]
[340379269,1729146385472,-151.0,0.00015382,2]
[340379270,1729146385496,-172.606118,0.00015382,2]
[340379271,1729146385522,-172.606118,0.00015382,2]
[340379272,1729146385546,-172.606118,0.00015382,2]
[340379273,1729146385569,-172.606118,0.00015382,2]
[340379274,1729146385593,-260.870216,0.00015382,2]
[340379275,1729146385617,-151.0,0.00015382,2]
[340379276,1729146385644,-151.0,0.00015382,2]
[340379277,1729146385669,-151.0,0.00015382,2]
[340379278,1729146385696,-229.032974,0.00015382,2]
[340379279,1729146385721,-313.603991,0.00015382,2]
[340379280,1729146385748,-313.603982,0.00015382,2]
[340379281,1729146385773,-189.88264,0.00015382,2]
[340379282,1729146385799,-151.0,0.00015383,2]
[340379283,1729146385824,-151.0,0.00015383,2]
[340379284,1729146385848,-207.371656,0.00015383,2]
[340379285,1729146385873,-151.0,0.00015383,2]
[340379286,1729146385897,-151.0,0.00015383,2]
[340379287,1729146385921,-203.538728,0.00015383,2]
[340379288,1729146385946,-702.367667,0.00015383,2]
[340379289,1729146385969,-702.367667,0.00015383,2]
[340379290,1729146386269,-702.367667,0.00015383,2]
[340379291,1729146386292,-702.367667,0.00015383,2]
[340379292,1729146386317,-702.367667,0.00015383,2]
[340379293,1729146386340,-151.0,0.00015383,2]
[340379294,1729146386363,-151.0,0.00015383,2]
[340379295,1729146386386,-256.025083,0.00015383,2]
[340379296,1729146386408,-151.0,0.00015383,2]
[340379297,1729146386430,-151.0,0.00015383,2]
[340379298,1729146386454,-151.0,0.00015383,2]
[340379299,1729146386478,-151.0,0.00015383,2]
[340379300,1729146386500,-151.0,0.00015383,2]
[340379301,1729146386523,-151.0,0.00015384,2]
[340379302,1729146386545,-151.0,0.00015384,2]
[340379303,1729146386573,-151.0,0.00015384,2]
[340379304,1729146386597,-154.393895,0.00015384,2]
[340379305,1729146386621,-151.0,0.00015384,2]
[340379306,1729146386649,-151.0,0.00015384,2]
[340379307,1729146386674,-151.0,0.00015384,2]
[340379308,1729146386701,-151.0,0.00015384,2]
[340379309,1729146386726,-151.0,0.00015384,2]
[340379310,1729146386750,-151.0,0.00015384,2]
[340379311,1729146386774,-151.0,0.00015384,2]
[340379312,1729146386798,-216.63429,0.00015384,2]
[340379313,1729146386822,-172.606118,0.00015384,2]
[340379314,1729146386845,-172.606118,0.00015384,2]
[340379315,1729146386870,-151.0,0.00015384,2]
[340379316,1729146386895,-151.0,0.00015385,2]
[340379317,1729146386919,-151.0,0.00015385,2]
[340379318,1729146386945,-151.0,0.00015385,2]
[340379319,1729146386970,-151.0,0.0001539,2]
[340379320,1729146386993,-151.0,0.0001539,2]
[340379321,1729146387018,-151.595271,0.00015391,2]
[340379322,1729146387045,-151.0,0.00015392,2]
[340379323,1729146387068,-151.0,0.00015392,2]
[340379324,1729146387093,-151.0,0.00015392,2]
[340379325,1729146387117,-151.0,0.00015392,2]
[340379326,1729146387142,-151.0,0.00015393,2]
[340379327,1729146387168,-1000.0,0.000154,2]
[340379328,1729146387193,-150.112233,0.000154,2]
[340379329,1729146387219,-150.112233,0.000154,2]
[340379330,1729146387243,-150.112233,0.000154,2]
[340379331,1729146387267,-150.112233,0.000154,2]
[340379332,1729146387311,-150.112233,0.000154,2]
[340379333,1729146387339,-150.112233,0.000154,2]
[340379334,1729146387365,-150.112233,0.000154,2]
[340379335,1729146387393,-150.112233,0.000154,2]
[340379336,1729146387417,-210.4868531,0.000154,2]
[340379337,1729146387444,-420.9034874,0.000154,2]
[340379338,1729146387469,-508.99559818,0.000154,2]
[340379339,1729146387494,-702.367667,0.000154,2]
[340379340,1729146387520,-702.367667,0.000154,2]
[340379341,1729146387546,-1000.0,0.000154,2]
[340379342,1729146387572,-1001.22112129,0.000154,2]
[340379343,1729146387597,-1000.0,0.000154,2]
[340379344,1729146387622,-1071.49219839,0.000154,2]
[340379345,1729146387648,-1000.0,0.000154,2]
[340379346,1729146387674,-504.0880137,0.000154,2]
[340379347,1729146387700,-504.83292054,0.000154,2]
[340379348,1729146387725,-1000.0,0.000154,2]
[340379349,1729146387750,-1000.0,0.0001543,2]
[340379350,1729146387775,-1500.0,0.0001544,2]
[340379351,1729146387800,-1500.0,0.0001544,2]
[340379352,1729146387826,-41319.0256624,0.00015458,2]
[340379353,1729146387850,-150.01,0.00015468,2]
[340379354,1729146387875,-3532.25251101,0.00015468,2]
[340379355,1729146387900,-2000.0,0.00015487,2]
[340379356,1729146387923,-1552.84609946,0.00015487,2]
[340379357,1729146387949,-465.00472693,0.00015487,2]
[340379358,1729146387979,-172.606118,0.00015487,2]
[340379359,1729146388004,-172.606118,0.00015487,2]
[340379360,1729146388029,-151.0,0.00015487,2]
[340379361,1729146388054,-210.4868531,0.000155,2]
[340379362,1729146388080,-151.0,0.000155,2]
[340379363,1729146388106,-157.250157,0.000155,2]
[340379364,1729146388133,-500.0,0.00015532,2]
[340379365,1729146388158,-500.0,0.00015532,2]
[340379366,1729146388184,-500.0,0.00015532,2]
[340379367,1729146388208,-500.0,0.00015532,2]
[340379368,1729146388232,-150.0,0.00015532,2]
[340379369,1729146388258,-207.21000988,0.00015532,2]
[340379370,1729146388283,-500.0,0.00015532,2]
[340379371,1729146388313,-507.0,0.00015532,2]
[340379372,1729146388340,-150.0,0.00015532,2]
[340379373,1729146388364,-2500.0,0.00015539,2]
[340379374,1729146388389,-333736.71030709,0.00015543,2]
[340379375,1729146388415,-702.367667,0.00015543,2]
[340379376,1729146388440,-702.367669,0.00015543,2]
[340379377,1729146388464,-172.606118,0.00015543,2]
[340379378,1729146388489,-172.606118,0.00015543,2]
[340379379,1729146388513,-151.0,0.00015543,2]
[340379380,1729146388538,-150.715,0.00015562,2]
[340379381,1729146388563,-527.0,0.00015562,2]
[340379382,1729146388588,-1806.0,0.00015562,2]
[340379383,1729146388614,-1158.0,0.00015562,2]
[340379384,1729146388642,-258.987,0.00015562,2]
[340379385,1729146388666,-500.0,0.00015573,2]
[340379386,1729146388692,-3000.0,0.00015595,2]
[340379387,1729146388717,-350.0,0.000156,4]
[340379388,1729146388741,-330.0,0.000156,4]
[340379389,1729146388767,-1000.0,0.000156,2]
[340379390,1729146388792,-150.0,0.000156,2]
[340379391,1729146388818,-420.0,0.00015601,2]
[340379392,1729146388843,-150.0,0.00015611,2]
[340379393,1729146388869,-150.0,0.00015615,2]
[340379394,1729146388894,-1500.0,0.0001564,2]
[340379395,1729146388918,-2006.42768688,0.00015654,2]
[340379396,1729146388945,-420.0,0.00015668,2]
[340379397,1729146388973,-2000.0,0.00015687,2]
[340379398,1729146388999,-155.0,0.0001569,2]
[340379399,1729146389024,-172.606118,0.00015697,2]
[340379400,1729146389049,-172.606118,0.00015697,2]
[340379401,1729146389075,-151.0,0.00015697,2]
[340379402,1729146389100,-86325.77502893,0.00015697,2]
[340379403,1729146389124,-348.94366054,0.000157,4]
[340379404,1729146389149,-150.112233,0.000157,2]
[340379405,1729146389173,-501.13154902,0.00015731,2]
[340379406,1729146389200,-631.16472864,0.00015731,2]
[340379407,1729146389224,-193.41087348,0.00015731,2]
[340379408,1729146389248,-2500.0,0.00015739,2]
[340379409,1729146389273,-9241.70248597,0.00016,2]
[340379410,1729146389299,-3000.0,0.00016,2]
[340379411,1729146389392,261.378389,0.00015381,2]
[340379412,1729146389459,14754.77,0.00015381,2]
[340379413,1729146389731,261.378389,0.00015381,2]
[340379414,1729146389768,14754.77,0.00015381,2]
[340379415,1729146389858,10730.34564907,0.00015382,2]
[340379592,1729146641352,-1495.01933602,0.00015262,2]
[340379616,1729146641569,-1553.66103032,0.00015262,2]
[340379618,1729146641580,-300.0,0.00015281,2]
[340379620,1729146641591,-300.0,0.00015281,2]
[340379622,1729146641601,-6985.31108668,0.00015282,2]
[340379624,1729146641610,-372.78233181,0.00015362,2]
[340379626,1729146641620,-22458.74555119,0.00015362,2]
[340379710,1729146642932,-3601.2939011,0.00015362,2]
[340379723,1729146645896,-797.32722821,0.00015362,2]
[340379724,1729146645905,-2314.66877845,0.00015362,2]
[340379725,1729146645915,-294.71966,0.00015371,2]
[340379726,1729146645928,-294.71966,0.00015371,2]